Cogmind - Beta 15 *** ADVENTURER MODE // 2025.05.19 @ 17:07:28 Player: Jack Result: Destroyed by 50-YTV(g) with Beamcaster Performance ------------- Evolutions (6) 3000 Regions Visited (18) 3600 Robots Destroyed (59) 295 Value Destroyed (1778) 1778 Prototype IDs (23) 460 Alien Tech Used (0) 0 Bonus (2378) 2378 TOTAL SCORE: 11511 Bonus ------- High Alert Combat Kills 140 Follower Combat Kills 1053 Entered Garrisons 200 Used RIF Installer 1000 Aligned with FarCom 300 Friendly Fire -315 Cogmind --------- Core Integrity 0/1150 Matter 266/300 Energy 94/100 System Corruption 1% Temperature Cool (9) Movement Core (100) Ox1 Location -4/Warlord Parts ------- > --- POWER (1) -------- (None) > --- PROPULSION (6) --- (None) > --- UTILITY (10) ----- Improved Signal Interpreter Terrain Scan Processor > --- WEAPON (2) ------- Phasing Sabre > --- INVENTORY (5) ---- Light Angular Momentum Engine Structural Scanner Firepult Peak State ------------ > --- POWER ------------ Micro Fission Core > --- PROPULSION ------- VTOL Module VTOL Module Nuclear Pulse Thruster > --- UTILITY ---------- Structural Scanner Improved Signal Interpreter Hacking Suite Hacking Suite Hacking Suite Hacking Suite Hacking Suite Hacking Suite Hacking Suite > --- WEAPON ----------- Firepult > --- INVENTORY -------- Long-range Missile Launcher Phasing Sabre Spear [Rating: 61] Favorites ----------- Power Micro Fission Core Engine Light Angular Momentum Engine Power Core Micro Fission Core Propulsion VTOL Module Flight Unit VTOL Module Utility Hacking Suite Device Structural Scanner Processor Improved Signal Interpreter Hackware Hacking Suite Weapon Spear Energy Gun Small Laser Energy Cannon Firepult Ballistic Gun Light Assault Rifle Launcher Mini Grenade Launcher Impact Weapon Mace Slashing Weapon Phasing Sabre Piercing Weapon Spear Build | -11 -10 -10 -9 -9 -9 -8 -8 -8 -8 -6 -5 -5 -5 -5 -4 -4 -4 -4 ------- Run | Yrd Mat Min Mat Min Exi Min Mat Sto Rec Fac Fac Was Fac Gar Fac Upp Upp War Slots Evolved 12 | . . . 2 . . . 2 . . 4 2 . . . 2 . . . Power . | . . . . . . . . . . . . . . . . . . . Propulsion 4 | . . . 1 . . . 1 . . . . . . . 2 . . . Utility 8 | . . . 1 . . . 1 . . 4 2 . . . . . . . Weapon . | . . . . . . . . . . . . . . . . . . . Parts Attached 48 | . . 4 7 4 . . 1 . 5 5 1 2 2 10 4 1 1 1 Power 5 | . . . 2 . . . . . . . 1 . . 2 . . . . Engine 3 | . . . 2 . . . . . . . . . . 1 . . . . Core 2 | . . . . . . . . . . . 1 . . 1 . . . . Reactor . | . . . . . . . . . . . . . . . . . . . Propulsion 20 | . . 2 5 3 . . 1 . . . . 2 . 5 . 1 1 . Treads . | . . . . . . . . . . . . . . . . . . . Leg . | . . . . . . . . . . . . . . . . . . . Wheel . | . . . . . . . . . . . . . . . . . . . Hover . | . . . . . . . . . . . . . . . . . . . Flight 20 | . . 2 5 3 . . 1 . . . . 2 . 5 . 1 1 . Utility 14 | . . . . . . . . . 4 4 . . 2 . 4 . . . Device 3 | . . . . . . . . . . . . . 1 . 2 . . . Storage . | . . . . . . . . . . . . . . . . . . . Processor 2 | . . . . . . . . . . 1 . . . . 1 . . . Hackware 9 | . . . . . . . . . 4 3 . . 1 . 1 . . . Protection . | . . . . . . . . . . . . . . . . . . . Artifact . | . . . . . . . . . . . . . . . . . . . Weapon 9 | . . 2 . 1 . . . . 1 1 . . . 3 . . . 1 Energy Gun 1 | . . 1 . . . . . . . . . . . . . . . . Energy Cannon 1 | . . . . . . . . . . . . . . 1 . . . . Ballistic Gun 1 | . . 1 . . . . . . . . . . . . . . . . Ballistic Cannon . | . . . . . . . . . . . . . . . . . . . Launcher 2 | . . . . 1 . . . . . . . . . 1 . . . . Special Weapon . | . . . . . . . . . . . . . . . . . . . Impact Weapon 1 | . . . . . . . . . 1 . . . . . . . . . Slashing Weapon 1 | . . . . . . . . . . . . . . . . . . 1 Piercing Weapon 2 | . . . . . . . . . . 1 . . . 1 . . . . Special Melee Weapon . | . . . . . . . . . . . . . . . . . . . Unidentified Prototypes . | . . . . . . . . . . . . . . . . . . . Corrupted Parts 1 | . . . . . . . . . . . . . . . . . . 1 System Corruption 1 | . . . . . . . . . . . . . . . . . . 1 Parts Lost 34 | . . . 1 1 . . 4 . . . . 1 1 12 3 5 4 2 Power 3 | . . . . 1 . . . . . . . . . 2 . . . . Propulsion 15 | . . . 1 . . . 3 . . . . 1 . 5 2 1 1 1 Utility 12 | . . . . . . . . . . . . . 1 3 1 3 3 1 Weapon 4 | . . . . . . . 1 . . . . . . 2 . 1 . . Highest Loss Streak 5 | . . . 1 1 . . 4 . . . . 1 1 5 2 4 4 2 To Critical Strikes . | . . . . . . . . . . . . . . . . . . . Average Backups 3 | 1 3 2 2 5 4 4 3 3 4 2 3 3 3 3 3 4 3 2 Power . | . . . . . . . . . . . . . . . . 1 1 . Propulsion . | . . . . 3 3 3 2 1 1 . . . . . . . . . Utility . | . . . . . . . . . . . . 1 . . . 1 1 1 Weapon 2 | 1 3 1 1 2 1 1 1 2 3 2 3 2 3 3 2 2 1 1 Tool/Special . | . . . . . . . . . . . . . . . . . . . Unused Backups 2 | . . . . . 1 . . . . . . . . . . . . 1 Power . | . . . . . . . . . . . . . . . . . . . Propulsion . | . . . . . . . . . . . . . . . . . . . Utility 1 | . . . . . . . . . . . . . . . . . . 1 Weapon 1 | . . . . . 1 . . . . . . . . . . . . . Tool/Special . | . . . . . . . . . . . . . . . . . . . Average Slot Usage (%) 63 | . . 34 65 56 55 55 45 18 26 70 71 79 83 78 54 53 28 18 Engine 1 | . . . 10 1 . . . . . . . . . . 3 . . 1 Core 1 | . . . . . . . . . . . . 5 5 3 . . . . Flight 18 | . . 11 33 33 33 33 29 18 18 20 17 19 23 19 12 5 3 1 Device 2 | . . . . . . . . . . . . . 1 5 5 8 5 . Processor 4 | . . . . . . . . . . 2 5 5 5 5 5 10 10 10 Hackware 25 | . . . . . . . . . 6 41 41 41 40 35 22 23 9 . Energy Gun 1 | . . 11 11 11 11 11 8 . . . . . . . . . . . Ballistic Gun 1 | . . 11 11 9 . . . . . . . . . . . . . . Piercing Weapon 3 | . . . . . . . . . . . 5 5 5 4 5 4 . . Peak Build Rating 61 | . . 4 6 6 8 8 10 4 20 34 40 51 51 61 36 42 27 30 Average Rating 31 | . . 2 5 5 6 8 7 4 6 28 35 44 49 44 31 31 16 21 On Entrance 17 | . . . 4 6 6 8 8 4 4 20 34 40 49 51 33 33 20 11 Naked Turns 26 | . 22 4 . . . . . . . . . . . . . . . . Heaviest Build 28 | . . 2 5 5 2 2 2 . 2 2 7 8 8 28 12 4 23 22 Greatest Support 20 | 3 3 8 12 12 12 12 16 8 12 12 12 20 20 20 12 12 4 4 Greatest Overweight (x) 7 | . . . . . . . . . . . . . . 2 . . 7 7 Average Overweight (x) . | . . . . . . . . . . . . . . . . . . . Largest Inventory Capacity 5 | 5 5 5 5 5 5 5 5 5 5 5 5 5 5 5 5 5 5 5 Average Capacity 5 | 5 5 5 5 5 5 5 5 5 5 5 5 5 5 5 5 5 5 5 Most Carried 5 | 3 3 3 5 5 5 5 5 5 5 5 5 5 5 5 5 5 5 5 Average Carried 4 | 2 3 1 2 5 4 5 4 4 4 3 4 4 4 4 4 4 4 3 Final Capacity 5 | 5 5 5 5 5 5 5 5 5 5 5 5 5 5 5 5 5 5 5 Final Carried 5 | 3 3 3 5 5 5 5 4 5 5 4 5 5 5 3 5 5 5 4 Class Distribution -------------------- 46% | Wizard-Sprinter 18% | Mutant 15% | Hacker-Sprinter 10% | Wizard-Mutant 3% | Scavenger-Mutant 3% | Hacker-Mutant Dominant Class ---------------- Mutant | -10/Materials Mutant | -10/Mines Scavenger-Mutant | -9/Materials Mutant | -9/Mines Mutant | -9/Exiles Mutant | -8/Mines Mutant | -8/Materials Mutant | -8/Storage Mutant | -8/Recycling Wizard-Sprinter | -6/Factory Wizard-Sprinter | -5/Factory Wizard-Sprinter | -5/Waste Wizard-Sprinter | -5/Factory Wizard-Sprinter | -5/Garrison Hacker-Sprinter | -4/Factory Wizard-Mutant | -4/Upper Caves Hacker-Mutant | -4/Upper Caves Mutant | -4/Warlord Resources | -11 -10 -10 -9 -9 -9 -8 -8 -8 -8 -6 -5 -5 -5 -5 -4 -4 -4 -4 ----------- Run | Yrd Mat Min Mat Min Exi Min Mat Sto Rec Fac Fac Was Fac Gar Fac Upp Upp War Matter Collected 866 | 134 . 53 64 100 . 34 20 . 26 64 13 123 15 150 27 15 27 1 Remotely . | . . . . . . . . . . . . . . . . . . . Salvage Created 1490 | . . 53 165 209 . . 34 . . . 40 225 31 264 86 44 74 265 Parts 103 | . . 7 22 18 . . 6 . . . 3 4 10 12 13 . 3 5 Haulers Intercepted . | . . . . . . . . . . . . . . . . . . . Recyclers Shooed . | . . . . . . . . . . . . . . . . . . . Parts Field Recycled . | . . . . . . . . . . . . . . . . . . . Retrieved Matter . | . . . . . . . . . . . . . . . . . . . Parts Self-Destructed 2 | . . . . . . . . . . . . . . . . . 2 . Prevented . | . . . . . . . . . . . . . . . . . . . Kills | -11 -10 -10 -9 -9 -9 -8 -8 -8 -8 -6 -5 -5 -5 -5 -4 -4 -4 -4 ------- Run | Yrd Mat Min Mat Min Exi Min Mat Sto Rec Fac Fac Was Fac Gar Fac Upp Upp War Combat Hostiles Destroyed 43 | . . 3 11 8 . . 1 . . . . 1 . 11 . 2 3 3 Melee 1 | . . . . . . . . . . . . . . . . . . 1 Guns 18 | . . 3 11 4 . . . . . . . . . . . . . . Cannons 2 | . . . . . . . . . . . . . . . . 1 1 . AOE 20 | . . . . 4 . . 1 . . . . 1 . 11 . 1 2 . Classes Destroyed 11 | . . 1 . 2 . . 1 . . . 1 1 . 2 1 . . 2 Worker 4 | . . . . 3 . . 1 . . . . . . . . . . . Builder 7 | . . . . . . . 1 . . . 1 . 2 . 3 . . . Tunneler 1 | . . . . . . . . . . . . . . . 1 . . . Recycler 1 | . . . . 1 . . . . . . . . . . . . . . Operator 2 | . . . . . . . . . . . 1 . . . 1 . . . Swarmer 36 | . . 3 11 8 . . 1 . . . . . . 8 . 2 3 . Hunter 1 | . . . . . . . . . . . . . . 1 . . . . Programmer 2 | . . . . . . . . . . . . . . 2 . . . . Compactor 1 | . . . . . . . . . . . . 1 . . . . . . Wasp 1 | . . . . . . . . . . . . 1 . . . . . . Thug 1 | . . . . . . . . . . . . . . . . . . 1 Marauder 2 | . . . . . . . . . . . . . . . . . . 2 Best Kill Streak 8 | . . 3 4 8 . . 3 . . . 1 1 1 8 2 2 3 2 Combat Bots Only 8 | . . 3 4 4 . . 1 . . . . 1 . 8 . 2 3 2 Max Kills in Single Turn 4 | . . 1 1 3 . . 2 . . . 1 1 1 4 1 2 3 1 Gunslinging 1 | . . . . 1 . . . . . . . . . . . . . . Exploded 4 | . . . . 3 . . 1 . . . . 1 . 4 . 1 2 . Melee 1 | . . . . . . . . . . . . . . . . . . 1 Uniques/NPCs Destroyed . | . . . . . . . . . . . . . . . . . . . Combat | -11 -10 -10 -9 -9 -9 -8 -8 -8 -8 -6 -5 -5 -5 -5 -4 -4 -4 -4 -------- Run | Yrd Mat Min Mat Min Exi Min Mat Sto Rec Fac Fac Was Fac Gar Fac Upp Upp War Hostile Shots Fired 388 | . . 13 41 29 . . 31 7 . . . . 3 87 36 29 37 75 Missed 178 | . . 7 25 8 . . 14 3 . . . . 2 42 17 17 15 28 Hits 210 | . . 6 16 21 . . 17 4 . . . . 1 45 19 12 22 47 Melee 1 | . . . . . . . . . . . . . . . . . 1 . Projectile 209 | . . 6 16 21 . . 17 4 . . . . 1 45 19 12 21 47 Critical Strikes 7 | . . . . 1 . . . . . . . . . 1 1 1 1 2 Damage Taken 3049 | . . 38 111 135 . . 212 56 . . . 51 18 755 237 259 315 862 Core 1719 | . . 28 38 45 . . 108 42 . . . 31 . 276 128 100 259 664 Absorbed by Shields 79 | . . . . . . . . . . . . . . 79 . . . . Ignored by Resistances 850 | . . 12 35 42 . . 61 16 . . . 14 5 228 70 52 92 223 Regen/Repaired (Parts) 29 | . . . . . . . . . . . . 9 . . 20 . . . Core Remaining (%) 84 | 100 . 88 . . . 79 . . 72 100 . . . 69 . . . . Volleys Fired 55 | . . 5 14 14 . . 2 . . . . 5 . 8 . 1 1 5 Largest 2 | . . 2 2 2 . . 2 . . . . 1 . 1 . 1 1 1 Hottest 250 | . . 60 60 70 . . 70 . . . . 30 . 250 . 250 250 250 Shots Fired 90 | . . 10 28 28 . . 4 . . . . 5 . 8 . 1 1 5 Gun 66 | . . 10 28 26 . . 2 . . . . . . . . . . . Cannon 11 | . . . . . . . . . . . . . . 4 . 1 1 5 Launcher 13 | . . . . 2 . . 2 . . . . 5 . 4 . . . . Special . | . . . . . . . . . . . . . . . . . . . Kinetic 31 | . . 5 14 12 . . . . . . . . . . . . . . Thermal 46 | . . 5 14 14 . . 2 . . . . . . 4 . 1 1 5 Explosive 13 | . . . . 2 . . 2 . . . . 5 . 4 . . . . Electromagnetic . | . . . . . . . . . . . . . . . . . . . Robot Hit Streak 21 | . . 6 17 13 . . 5 . . . . 3 . 8 . 3 5 21 Robot Miss Streak 2 | . . 2 1 1 . . . . . . . 1 . 1 . 1 1 . Penetration Max . | . . . . . . . . . . . . . . . . . . . Secondary Targets 4 | . . 1 . 3 . . . . . . . . . . . . . . Max Gunslinging Chain 1 | . . 1 . 1 . . . . . . . . . . . . . . Shots Hit Robots 87 | . . 7 18 23 . . 2 . . . 3 5 5 2 11 1 1 9 Core Hits 77 | . . 3 11 14 . . 3 . . . 1 4 2 17 4 2 4 12 Critical Kills . | . . . . . . . . . . . . . . . . . . . Critical Parts Destroyed 1 | . . . . 1 . . . . . . . . . . . . . . Critical Strikes 3 | . . . . 1 . . . . . . . . . . 1 . . 1 Destroy 1 | . . . . 1 . . . . . . . . . . . . . . Sever 1 | . . . . . . . . . . . . . . . . . . 1 Impale 1 | . . . . . . . . . . . . . . . 1 . . . Melee Attacks 132 | . . . . . . . . . . 6 7 2 10 63 35 5 . 4 Impact 6 | . . . . . . . . . . 6 . . . . . . . . Slashing 4 | . . . . . . . . . . . . . . . . . . 4 Piercing 122 | . . . . . . . . . . . 7 2 10 63 35 5 . . Sneak Attacks 12 | . . . . . . . . . . . 1 2 4 . 5 . . . Combat Hostiles 1 | . . . . . . . . . . . . . 1 . . . . . Follow-up Attacks . | . . . . . . . . . . . . . . . . . . . Damage Inflicted 4020 | . . 65 185 451 . . 199 . . . 149 526 308 967 528 36 105 501 Guns 464 | . . 65 185 202 . . 12 . . . . . . . . . . . Cannons 227 | . . . . . . . . . . . . . . 23 . 17 30 157 Explosions 2079 | . . . . 249 . . 187 . . . . 434 . 944 . 19 67 179 Melee 1242 | . . . . . . . . . . . 149 92 308 . 528 . . 165 Ramming 8 | . . . . . . . . . . . . . . . . . 8 . Kinetic 137 | . . 21 51 65 . . . . . . . . . . . . . . Thermal 1151 | . . 44 134 137 . . 12 . . . . . . 355 . 36 97 336 Explosive 1482 | . . . . 249 . . 187 . . . . 434 . 612 . . . . Electromagnetic . | . . . . . . . . . . . . . . . . . . . Impact . | . . . . . . . . . . . . . . . . . . . Slashing 165 | . . . . . . . . . . . . . . . . . . 165 Piercing 1077 | . . . . . . . . . . . 149 92 308 . 528 . . . Highest Corruption 11 | . . . . . . . . . . . . . . 2 . 3 11 11 Average Corruption 2 | . . . . . . . . . . . . . . 1 . 3 6 3 Corruption Purged . | . . . . . . . . . . . . . . . . . . . Corruption Blocked . | . . . . . . . . . . . . . . . . . . . Effects 14 | . . . . . . . . . . . . . . 5 . 1 7 1 Message Errors 6 | . . . . . . . . . . . . . . 2 . 1 2 1 Matter Fused 2 | . . . . . . . . . . . . . . 1 . . 1 . Energy Discharges 1 | . . . . . . . . . . . . . . 1 . . . . Data Loss (major) 2 | . . . . . . . . . . . . . . 1 . . 1 . Misdirections 3 | . . . . . . . . . . . . . . . . . 3 . Overload Shots . | . . . . . . . . . . . . . . . . . . . Overflow Damage 389 | . . . . 5 . . 18 . . . 62 . 96 74 134 . . . Projectiles . | . . . . . . . . . . . . . . . . . . . Explosions 97 | . . . . 5 . . 18 . . . . . . 74 . . . . Melee 292 | . . . . . . . . . . . 62 . 96 . 134 . . . Knockbacks . | . . . . . . . . . . . . . . . . . . . Impact . | . . . . . . . . . . . . . . . . . . . Kinetic . | . . . . . . . . . . . . . . . . . . . Secondary . | . . . . . . . . . . . . . . . . . . . Self-Inflicted Damage 189 | . . . . . . . 24 . . . . 31 . 115 . . 4 15 Shots 10 | . . . . . . . 1 . . . . 1 . 6 . . . 2 Rammed 3 | . . . . . . . . . . . . . . . . . 3 . Targets Rammed 3 | . . . . . . . . . . . . . . . . . 3 . Kicked . | . . . . . . . . . . . . . . . . . . . Crushed . | . . . . . . . . . . . . . . . . . . . Highest Temperature 410 | . . 20 40 20 . . 3 . . . . . . 388 . 170 164 410 Average Temperature 104 | . . 9 19 11 . . 3 . . . . . . 194 . 89 96 180 Received Heat Transfer 486 | . . . 18 . . . 117 36 . . . . . 114 39 39 87 36 Effects 5 | . . . . . . . . . . . . . . . . . . 5 Shutdowns 1 | . . . . . . . . . . . . . . . . . . 1 Energy Bleed 1 | . . . . . . . . . . . . . . . . . . 1 Interference 2 | . . . . . . . . . . . . . . . . . . 2 Short Circuit 1 | . . . . . . . . . . . . . . . . . . 1 Siege Activations . | . . . . . . . . . . . . . . . . . . . Martial Activations . | . . . . . . . . . . . . . . . . . . . Shielding Activations . | . . . . . . . . . . . . . . . . . . . Robots Disrupted . | . . . . . . . . . . . . . . . . . . . Combat Hostiles . | . . . . . . . . . . . . . . . . . . . Robots Corrupted . | . . . . . . . . . . . . . . . . . . . Combat Hostiles . | . . . . . . . . . . . . . . . . . . . Parts Fried . | . . . . . . . . . . . . . . . . . . . Impact Corruptions . | . . . . . . . . . . . . . . . . . . . Robots Melted 2 | . . . . . . . . . . . . . . . . . . 2 Combat Hostiles 2 | . . . . . . . . . . . . . . . . . . 2 Parts Melted 21 | . . . 1 . . . . . . . . . . 5 . 1 . 14 Heat Transferred 4624 | . . 100 300 325 . . 25 . . . . . . 1474 . 160 560 1680 Parts Sabotaged . | . . . . . . . . . . . . . . . . . . . Parts Stolen . | . . . . . . . . . . . . . . . . . . . Parts Stripped . | . . . . . . . . . . . . . . . . . . . Power Chain Reactions . | . . . . . . . . . . . . . . . . . . . Alert | -11 -10 -10 -9 -9 -9 -8 -8 -8 -8 -6 -5 -5 -5 -5 -4 -4 -4 -4 ------- Run | Yrd Mat Min Mat Min Exi Min Mat Sto Rec Fac Fac Was Fac Gar Fac Upp Upp War Maximum Alert Level 4 | . . . 1 1 . . . . . . . . 1 4 2 . . . Low Security (%) 48 | 100 100 100 68 71 . 100 100 100 100 100 100 100 58 14 . . . . Level 1 17 | . . . 31 28 . . . . . . . . 41 25 . . . . Level 2 22 | . . . . . . . . . . . . . . 21 100 . . . Level 3 4 | . . . . . . . . . . . . . . 16 . . . . Level 4 6 | . . . . . . . . . . . . . . 22 . . . . Level 5 . | . . . . . . . . . . . . . . . . . . . High Security . | . . . . . . . . . . . . . . . . . . . Max Security . | . . . . . . . . . . . . . . . . . . . Peak Influence 1267 | . 7 70 346 259 . . 66 14 . 8 7 103 301 1267 615 . . . Initial 575 | . . . 16 110 . . . 14 . . . . 38 86 575 . . . Average 327 | . 2 47 148 180 . . 15 7 . . 1 38 181 651 529 . . . Influence Increases 3573 | . 7 70 400 259 . . 101 . 8 28 18 143 403 1571 335 115 115 . Destroy 0b10 Robot/C 1360 | . . 60 220 160 . . 20 . . . . . 180 620 . 40 60 . Destroy 0b10 Robot/NC 90 | . . . . 20 . . 10 . . . 10 . 25 . 25 . . . Destroy Leader 150 | . . 10 30 20 . . . . . . . . 40 40 . . 10 . Allied During Kill 256 | . . . . . . . . . . . . . 106 150 . . . . Successful Hack 25 | . 7 . . . . . . . 8 8 . . . . 2 . . . Disable Machine 36 | . . . . . . . . . . . . . . 27 9 . . . Anti-Garrison Action 150 | . . . . . . . . . . . . . . 150 . . . . Destroy Structure 546 | . . . . 14 . . 26 . . 5 8 128 52 269 44 . . . Partial Spotted 150 | . . . 30 . . . . . . . . 15 . 75 30 . . . Lose Combat Pursuer 810 | . . . 120 45 . . 45 . . 15 . . . 240 225 75 45 . Influence Decreases 3573 | . 7 20 114 356 239 . 60 41 8 27 15 84 325 445 1012 475 155 190 Entered New Map 1823 | . . . 34 226 239 . . 27 . . 1 4 25 55 692 265 65 190 Time Decay 1135 | . 7 20 70 120 . . 20 14 8 22 14 70 270 . 290 160 50 . Lost Part 310 | . . . 10 10 . . 40 . . . . . 10 120 30 50 40 . Lost Ally 305 | . . . . . . . . . . 5 . 10 20 270 . . . . Squads Dispatched 14 | . . . 2 . . . 4 . . 3 . . . . 5 . . . Investigation 8 | . . . . . . . 3 . . 2 . . . . 3 . . . Extermination 2 | . . . . . . . . . . 1 . . . . 1 . . . Reinforcement 4 | . . . 2 . . . 1 . . . . . . . 1 . . . Assault . | . . . . . . . . . . . . . . . . . . . Garrison . | . . . . . . . . . . . . . . . . . . . Intercept . | . . . . . . . . . . . . . . . . . . . Searches Triggered . | . . . . . . . . . . . . . . . . . . . Construction Impeded 2 | . . . . . . . 1 . . . . . . . 1 . . . Haulers Reinforced . | . . . . . . . . . . . . . . . . . . . Active Scanning Responses . | . . . . . . . . . . . . . . . . . . . Cargo Convoy Interrupts . | . . . . . . . . . . . . . . . . . . . Stealth | -11 -10 -10 -9 -9 -9 -8 -8 -8 -8 -6 -5 -5 -5 -5 -4 -4 -4 -4 --------- Run | Yrd Mat Min Mat Min Exi Min Mat Sto Rec Fac Fac Was Fac Gar Fac Upp Upp War Distress Signals 6 | . . . 2 . . . 2 . . . . . . . 2 . . . Communications Jammed . | . . . . . . . . . . . . . . . . . . . Distress Signals . | . . . . . . . . . . . . . . . . . . . Times Spotted 160 | . . 5 30 11 . . 20 3 . 2 2 3 2 35 16 11 9 11 Peak Tracking Total 14 | . . 3 14 4 . . 13 3 . 2 1 3 1 10 13 5 9 8 Tactical Retreats 27 | . . . 3 2 . . 3 . . 1 . . . 9 6 2 1 . Traps | -11 -10 -10 -9 -9 -9 -8 -8 -8 -8 -6 -5 -5 -5 -5 -4 -4 -4 -4 ------- Run | Yrd Mat Min Mat Min Exi Min Mat Sto Rec Fac Fac Was Fac Gar Fac Upp Upp War Traps Triggered 16 | . . . . . . . 1 . . 2 1 . . 11 . . . 1 Indirectly . | . . . . . . . . . . . . . . . . . . . Trap Hack Attempts . | . . . . . . . . . . . . . . . . . . . Triggered . | . . . . . . . . . . . . . . . . . . . Disarmed . | . . . . . . . . . . . . . . . . . . . Reprogrammed . | . . . . . . . . . . . . . . . . . . . Reused . | . . . . . . . . . . . . . . . . . . . Traps Extracted . | . . . . . . . . . . . . . . . . . . . Installed . | . . . . . . . . . . . . . . . . . . . Triggered . | . . . . . . . . . . . . . . . . . . . Machines | -11 -10 -10 -9 -9 -9 -8 -8 -8 -8 -6 -5 -5 -5 -5 -4 -4 -4 -4 ---------- Run | Yrd Mat Min Mat Min Exi Min Mat Sto Rec Fac Fac Was Fac Gar Fac Upp Upp War Machines Disabled 9 | . . . . . . . . . . . . . . 7 1 . . 1 Max in Single Turn 1 | . . . . . . . . . . . . . . 1 1 . . 1 Garrison Relay 4 | . . . . . . . . . . . . . . 4 . . . . Phase Generator 1 | . . . . . . . . . . . . . . 1 . . . . Machines Repaired . | . . . . . . . . . . . . . . . . . . . Machines Dismantled . | . . . . . . . . . . . . . . . . . . . Machines Sabotaged . | . . . . . . . . . . . . . . . . . . . Overloaded Fab Kills . | . . . . . . . . . . . . . . . . . . . Hacking | -11 -10 -10 -9 -9 -9 -8 -8 -8 -8 -6 -5 -5 -5 -5 -4 -4 -4 -4 --------- Run | Yrd Mat Min Mat Min Exi Min Mat Sto Rec Fac Fac Was Fac Gar Fac Upp Upp War Machines Accessed 20 | . 1 . . . 1 . 4 . 2 3 1 . 1 1 6 . . . Terminals 15 | . 1 . . . . . 4 . 2 2 1 . . 1 4 . . . Fabricators 2 | . . . . . . . . . . 1 . . . . 1 . . . Repair Stations 1 | . . . . . . . . . . . . . . . 1 . . . Recycling Units . | . . . . . . . . . . . . . . . . . . . Scanalyzers . | . . . . . . . . . . . . . . . . . . . Garrison Access 1 | . . . . . . . . . . . . . 1 . . . . . Total Hacks 40 | . 3 . . . 1 . 9 . 2 8 2 . 1 1 13 . . . Successful 21 | . 1 . . . 1 . 1 . 1 7 1 . 1 1 7 . . . Failed 19 | . 2 . . . . . 8 . 1 1 1 . . . 6 . . . Catastrophic 3 | . . . . . . . 2 . 1 . . . . . . . . . Database Lockouts . | . . . . . . . . . . . . . . . . . . . Manual 31 | . 3 . . . 1 . 9 2 2 4 2 . . . 8 . . . Terminals 30 | . 3 . . . . . 9 . 2 5 2 . . 1 8 . . . Fabricators 6 | . . . . . . . . . . 3 . . . . 3 . . . Repair Stations 2 | . . . . . . . . . . . . . . . 2 . . . Recycling Units . | . . . . . . . . . . . . . . . . . . . Scanalyzers . | . . . . . . . . . . . . . . . . . . . Garrison Access 1 | . . . . . . . . . . . . . 1 . . . . . Terminal Hacks 12 | . 1 . . . 1 . 1 . 1 3 1 . . 1 3 . . . Part Schematic 2 | . . . . . . . 1 . . 1 . . . . . . . . Open Door 1 | . . . . . . . . . . . . . . 1 . . . . Level Access Points 1 | . . . . . . . . . 1 . . . . . . . . . Branch Access Points 3 | . 1 . . . . . . . . . . . . . 2 . . . Machine Index 2 | . . . . . . . . . . 1 1 . . . . . . . Recall Extermination 1 | . . . . . . . . . . 1 . . . . . . . . Zone Layout 1 | . . . . . . . . . . . . . . . 1 . . . Proto ID Catalog 1 | . . . . . 1 . . . . . . . . . . . . . Fabricator Hacks 4 | . . . . . . . . . . 2 . . . . 2 . . . Load Schematic 2 | . . . . . . . . . . 1 . . . . 1 . . . Build 2 | . . . . . . . . . . 1 . . . . 1 . . . Repair Station Hacks 2 | . . . . . . . . . . . . . . . 2 . . . Scan Component 1 | . . . . . . . . . . . . . . . 1 . . . Repair 1 | . . . . . . . . . . . . . . . 1 . . . Recycling Unit Hacks . | . . . . . . . . . . . . . . . . . . . Scanalyzer . | . . . . . . . . . . . . . . . . . . . Garrison Access Hacks 1 | . . . . . . . . . . . . . 1 . . . . . Unlock Access 1 | . . . . . . . . . . . . . 1 . . . . . Unauthorized Hacks 2 | . . . . . . . . . . 2 . . . . . . . . Terminals 1 | . . . . . . . . . . 1 . . . . . . . . Assimilate 1 | . . . . . . . . . . 1 . . . . . . . . Fabricators 1 | . . . . . . . . . . 1 . . . . . . . . Prioritize 1 | . . . . . . . . . . 1 . . . . . . . . Repair Stations . | . . . . . . . . . . . . . . . . . . . Recycling Units . | . . . . . . . . . . . . . . . . . . . Scanalyzers . | . . . . . . . . . . . . . . . . . . . Garrison Access . | . . . . . . . . . . . . . . . . . . . Data Cores Recovered 2 | . . . . . . . . . . . 1 . . . 1 . . . Used 1 | . . . . . . . . . . . 1 . . . . . . . Hacking Detections 16 | . 1 . . . . . 3 1 2 3 1 . 1 . 4 . . . Full Trace Events 9 | . 1 . . . . . 3 . . 2 . . . . 3 . . . Feedback Events . | . . . . . . . . . . . . . . . . . . . Feedback Blocked . | . . . . . . . . . . . . . . . . . . . Robot Schematics Acquired . | . . . . . . . . . . . . . . . . . . . Robots Built . | . . . . . . . . . . . . . . . . . . . Authchips . | . . . . . . . . . . . . . . . . . . . Time . | . . . . . . . . . . . . . . . . . . . Total Robot Build Rating . | . . . . . . . . . . . . . . . . . . . Part Schematics Acquired 2 | . . . . . . . 1 . . 1 . . . . . . . . Parts Built 3 | . . . . . . . . . . 2 . . . . 1 . . . Authchips . | . . . . . . . . . . . . . . . . . . . Time 38 | . . . . . . . . . . 14 . . . . 24 . . . Total Part Build Rating 11 | . . . . . . . . . . 8 . . . . 3 . . . Parts Repaired 1 | . . . . . . . . . . . . . . . 1 . . . Time 16 | . . . . . . . . . . . . . . . 16 . . . Parts Recycled . | . . . . . . . . . . . . . . . . . . . Recycled Matter . | . . . . . . . . . . . . . . . . . . . Retrieved Matter . | . . . . . . . . . . . . . . . . . . . Retrieved Components . | . . . . . . . . . . . . . . . . . . . Parts Scanalyzed . | . . . . . . . . . . . . . . . . . . . Part Schematics Acquired . | . . . . . . . . . . . . . . . . . . . Parts Damaged . | . . . . . . . . . . . . . . . . . . . Bothacking | -11 -10 -10 -9 -9 -9 -8 -8 -8 -8 -6 -5 -5 -5 -5 -4 -4 -4 -4 ------------ Run | Yrd Mat Min Mat Min Exi Min Mat Sto Rec Fac Fac Was Fac Gar Fac Upp Upp War Used RIF Installer 2 | . . . . . . . . . . . . . . 2 . . . . Coupler Efficiency 1 | . . . . . . . . . . . . . . 1 . . . . Robots Hacked . | . . . . . . . . . . . . . . . . . . . Non-combat . | . . . . . . . . . . . . . . . . . . . Combat . | . . . . . . . . . . . . . . . . . . . Robot Hacks Applied . | . . . . . . . . . . . . . . . . . . . Relay Couplers Released 12 | . . . . . . . . . . . . . . 12 . . . . Machine Destruction 12 | . . . . . . . . . . . . . . 12 . . . . Fabnet Peak Effective % . | . . . . . . . . . . . . . . . . . . . Robots Rewired 3 | . . . . . . . . . . . . . . 3 . . . . Allies Hacked 1 | . . . . . . . . . . . . . 1 . . . . . Hacks Repelled . | . . . . . . . . . . . . . . . . . . . Allies | -11 -10 -10 -9 -9 -9 -8 -8 -8 -8 -6 -5 -5 -5 -5 -4 -4 -4 -4 -------- Run | Yrd Mat Min Mat Min Exi Min Mat Sto Rec Fac Fac Was Fac Gar Fac Upp Upp War Total Allies 25 | . . . . . . . . . . 1 . 19 . 5 . . . . Largest Group 19 | . . . . . . . . . . 1 . 19 12 12 . . . . Highest-Rated Group 687 | . . . . . . . . . . 26 . 687 496 537 . . . . Highest-Rated Ally 50 | . . . . . . . . . . 26 . 50 50 50 . . . . Total Orders 3 | . . . . . . . . . . . . . . 3 . . . . STAY 1 | . . . . . . . . . . . . . . 1 . . . . FOLLOW 1 | . . . . . . . . . . . . . . 1 . . . . AID 1 | . . . . . . . . . . . . . . 1 . . . . Ally Attacks 212 | . . . . . . . . . . . . 88 25 99 . . . . Total Damage 7307 | . . . . . . . . . . . . 2984 1262 3061 . . . . Kills 43 | . . . . . . . . . . . . 10 12 21 . . . . Allies Corrupted 1 | . . . . . . . . . . . . . . 1 . . . . Allies Melted . | . . . . . . . . . . . . . . . . . . . Intel | -11 -10 -10 -9 -9 -9 -8 -8 -8 -8 -6 -5 -5 -5 -5 -4 -4 -4 -4 ------- Run | Yrd Mat Min Mat Min Exi Min Mat Sto Rec Fac Fac Was Fac Gar Fac Upp Upp War Active Infowar (turns) 2102 | . . . . . . . . . . . . . 119 986 541 330 107 19 Terrain 309 | . . . . . . . . . . . . . . . 44 265 . . Structural 1602 | . . . . . . . . . . . . . 119 986 497 . . . Seismic 497 | . . . . . . . . . . . . . . . 41 330 107 19 Robot Analysis Total . | . . . . . . . . . . . . . . . . . . . Derelict Logs Recovered 4 | . . . . 2 . . . . . . . . . . . 1 1 . Drone Launches . | . . . . . . . . . . . . . . . . . . . Drone Recoveries . | . . . . . . . . . . . . . . . . . . . Exploration | -11 -10 -10 -9 -9 -9 -8 -8 -8 -8 -6 -5 -5 -5 -5 -4 -4 -4 -4 ------------- Run | Yrd Mat Min Mat Min Exi Min Mat Sto Rec Fac Fac Was Fac Gar Fac Upp Upp War Turns Passed 4101 | 19 22 41 155 240 83 35 83 44 89 251 98 248 557 986 580 330 107 133 Spaces Moved 6065 | 31 44 50 289 551 237 101 221 115 216 577 231 223 289 1550 722 275 248 95 Core 180 | 31 44 7 . . . . . . . . . . . . . . 59 39 Treads . | . . . . . . . . . . . . . . . . . . . Legs . | . . . . . . . . . . . . . . . . . . . Wheels . | . . . . . . . . . . . . . . . . . . . Hover . | . . . . . . . . . . . . . . . . . . . Flight 5885 | . . 43 289 551 237 101 221 115 216 577 231 223 289 1550 722 275 189 56 Fastest Speed 27 | 50 50 37 34 34 34 34 29 37 32 32 32 29 29 27 29 35 35 35 Average Speed 33 | 50 50 38 34 34 34 34 33 37 36 32 32 30 29 29 30 36 39 67 Slowest Speed 435 | 50 50 50 37 34 34 34 37 37 37 32 32 34 29 200 35 42 400 435 Overloaded Moves . | . . . . . . . . . . . . . . . . . . . Propulsion Burnouts . | . . . . . . . . . . . . . . . . . . . Robots Hopped 53 | . . 1 7 6 . 2 19 . 3 3 . . 2 3 5 2 . . Potential Cave-ins . | . . . . . . . . . . . . . . . . . . . Cave-ins Triggered 1 | . . . . . . . . . . . . . . . . 1 . . Exploration Rate (%) 38 | 3 10 21 41 85 62 41 27 27 44 22 6 87 9 93 25 55 44 24 Regions Visited 18 Branch Regions 9 Pre-discovered Areas 1 | . . . . 1 . . . . . . . . . . . . . . Known Exits Taken 7 | . 1 . . . . . . . 1 1 . . 1 . 1 1 1 . Unknown Exits Taken 8 | 1 . 1 1 1 1 1 1 1 . . . . . . . . . . Scrap Searched 4 | . . . . 1 . 1 . . . . . . . . . 2 . . Spaces Dug 76 | . . . . . . . . . . 5 4 . 4 37 22 4 . . Terrain Destroyed 281 | . . . . 24 . . 27 . . 5 4 33 4 141 22 4 . 17 Melee 62 | . . . . . . . . . . 5 4 . 4 23 22 4 . . Projectile . | . . . . . . . . . . . . . . . . . . . AOE 219 | . . . . 24 . . 27 . . . . 33 . 118 . . . 17 Terrain Rammed . | . . . . . . . . . . . . . . . . . . . Walls Destroyed . | . . . . . . . . . . . . . . . . . . . Machines Disabled . | . . . . . . . . . . . . . . . . . . . Actions | -11 -10 -10 -9 -9 -9 -8 -8 -8 -8 -6 -5 -5 -5 -5 -4 -4 -4 -4 --------- Run | Yrd Mat Min Mat Min Exi Min Mat Sto Rec Fac Fac Was Fac Gar Fac Upp Upp War Total 7800 | 33 43 59 311 572 239 98 208 115 220 628 244 393 744 1971 1020 494 254 154 Wait 1402 | . . . 5 5 . . . . . 25 4 160 443 242 262 213 . 43 Move 5948 | 30 43 47 274 539 236 96 188 114 209 570 231 222 284 1542 711 270 247 95 Hop 46 | . . 1 7 5 . 2 13 . 3 3 . . 2 3 5 2 . . Pick Up 18 | 3 . 2 2 . 1 . . 1 2 2 1 . 2 1 1 . . . Fast Attach 25 | . . 2 1 . . . . . 4 2 1 2 1 5 5 1 1 . Attach 26 | . . 2 2 . . . 3 . 2 2 . 1 1 7 . 1 1 4 Detach 13 | . . . . . . . 2 . . . . 1 . 4 1 1 1 3 Swap 11 | . . . 4 5 . . . . . 1 . . . 1 . . . . Drop 11 | . . . 2 4 2 . . . . 1 . . 1 1 . . . . Fire 55 | . . 5 14 14 . . 2 . . . . 5 . 8 . 1 1 5 Melee 132 | . . . . . . . . . . 6 7 2 10 63 35 5 . 4 Ram 3 | . . . . . . . . . . . . . . . . . 3 . Kick . | . . . . . . . . . . . . . . . . . . . Crush . | . . . . . . . . . . . . . . . . . . . Escape Stasis 106 | . . . . . . . . . . 16 . . . 90 . . . . Rewire 4 | . . . . . . . . . . . . . . 4 . . . . Trap . | . . . . . . . . . . . . . . . . . . . Miscellaneous . | . . . . . . . . . . . . . . . . . . . Route ------- -11/Scrapyard -10/Materials (discovered 2 exits: *Min x2) -10/Mines -9/Materials (discovered 2 exits: *Mat / [*Min]) -9/Mines (discovered 3 exits: *Mat x2 / *Exi) -9/Exiles -8/Mines -8/Materials (discovered 2 exits: [*Fac] / *Sto) -8/Storage -8/Recycling -6/Factory (discovered 2 exits: *Fac x2) -5/Factory -5/Waste -5/Factory -5/Garrison (discovered 3 exits: *Fac x3) -4/Factory (discovered 4 exits: *Upp x2 / Ext x2) -4/Upper Caves -4/Upper Caves (discovered 2 exits: Res / *War) -4/Warlord History --------- Turn | Location | Event 7 | -11/Scrapyard | Discovered new exit (range 15) 20 | -11/Scrapyard | Entered Materials 32 | -10/Materials | Identified exit to Mines 42 | -10/Materials | Entered Mines 80 | -10/Mines | Discovered new exit (range 6) 83 | -10/Mines | Entered Materials 83 | -9/Materials | Evolved 2 slots: Propulsion x1, Utility x1 133 | -9/Materials | Discovered new exit (range 3) 234 | -9/Materials | Discovered new exit (range 8) 238 | -9/Materials | Entered Mines 239 | -9/Mines | Discovered new exit (range 9) 379 | -9/Mines | Learned Materials security intel 413 | -9/Mines | Discovered new exit (range 7) 433 | -9/Mines | Learned location of Recycling (-8) 473 | -9/Mines | Deemed a non-threat by the Exiles lab entrance 473 | -9/Mines | Discovered new exit (range 5) 478 | -9/Mines | Entered Exiles 487 | -9/Exiles | Met 8R-AWN 492 | -9/Exiles | Met EX-HEX 504 | -9/Exiles | Met EX-BIN 508 | -9/Exiles | Aligned with FarCom system 509 | -9/Exiles | Given EX-Vault access code 512 | -9/Exiles | Build established: Mutant 518 | -9/Exiles | Opened EX-Vault 527 | -9/Exiles | Found Firepult 535 | -9/Exiles | Warned to stay clear of 0b10 Research branches 546 | -9/Exiles | Met EX-DEC 558 | -9/Exiles | Discovered new exit (range 10) 561 | -9/Exiles | Left Exiles lab with Firepult 561 | -9/Exiles | Entered Mines 591 | -8/Mines | Discovered new exit (range 13) 596 | -8/Mines | Entered Materials 596 | -8/Materials | Evolved 2 slots: Propulsion x1, Utility x1 676 | -8/Materials | Discovered new exit (range 7) 679 | -8/Materials | Discovered new exit (range 15) 679 | -8/Materials | Entered Storage 709 | -8/Storage | Lost 4 parts (3n1w) 721 | -8/Storage | Used back door to open Recycling access 721 | -8/Storage | Discovered new exit (range 5) 723 | -8/Storage | Entered Recycling 742 | -8/Recycling | Identified exit to Factory 812 | -8/Recycling | Entered Factory 812 | -6/Factory | Evolved 4 slots: Utility x4 1016 | -6/Factory | Discovered new exit (range 15) 1024 | -6/Factory | Discovered new exit (range 6) 1026 | -6/Factory | Identified exit to Factory 1049 | -6/Factory | Fabricated Spear (x2) 1063 | -6/Factory | Entered another Factory area 1063 | -5/Factory | Evolved 2 slots: Utility x2 1067 | -5/Factory | Discovered new exit (range 12) 1082 | -5/Factory | Build established: Wizard-Sprinter 1125 | -5/Factory | Identified exit to Upper Caves 1161 | -5/Factory | Sucked down chute 1161 | -5/Factory | Entered Waste 1162 | -5/Waste | Met a frightened Derelict 1164 | -5/Waste | Spotted C-40 Crusher 1166 | -5/Waste | Spotted C-40 Crusher 1170 | -5/Waste | Warlord forces began an assault 1247 | -5/Waste | Spotted C-40 Crusher 1274 | -5/Waste | Spotted C-40 Crusher 1282 | -5/Waste | Allies destroyed C-40 Crusher 1284 | -5/Waste | Spotted C-40 Crusher 1288 | -5/Waste | Allies destroyed C-40 Crusher 1300 | -5/Waste | Spotted C-40 Crusher 1315 | -5/Waste | Destroyed C-40 Crusher 1321 | -5/Waste | Allies destroyed C-40 Crusher 1331 | -5/Waste | Discovered new exit (range 11) 1335 | -5/Waste | Lost 3 allies 1408 | -5/Waste | Identified exit to Factory 1409 | -5/Waste | Entered Factory 1409 | -5/Factory | Accompanied by 12 allies 1433 | -5/Factory | Identified exit to Garrison 1966 | -5/Factory | Entered Garrison 1966 | -5/Garrison | Accompanied by 10 allies 2074 | -5/Garrison | Triggered checkpoint 2102 | -5/Garrison | Triggered checkpoint 2302 | -5/Garrison | Triggered checkpoint 2320 | -5/Garrison | Triggered checkpoint 2352 | -5/Garrison | Triggered checkpoint 2362 | -5/Garrison | Garrison Relay disabled 2366 | -5/Garrison | Triggered checkpoint 2372 | -5/Garrison | Triggered checkpoint 2404 | -5/Garrison | Lost 7 allies 2406 | -5/Garrison | Discovered new exit (range 12) 2408 | -5/Garrison | Spotted B-75 Beast 2409 | -5/Garrison | Identified exit to Factory 2416 | -5/Garrison | Triggered checkpoint 2442 | -5/Garrison | Discovered exit to Factory (range 12) 2454 | -5/Garrison | Triggered checkpoint 2458 | -5/Garrison | Garrison Relay disabled 2506 | -5/Garrison | Rescued a captive Derelict 2506 | -5/Garrison | Rescued a captive Derelict 2516 | -5/Garrison | Lost 3 parts (2n1w) 2567 | -5/Garrison | Triggered checkpoint 2593 | -5/Garrison | Destroyed 8 combat bots 2594 | -5/Garrison | Discovered exit to Factory (range 15) 2627 | -5/Garrison | Triggered checkpoint 2631 | -5/Garrison | Garrison Relay disabled 2736 | -5/Garrison | Phase Generator disabled 2775 | -5/Garrison | Lost 5 parts (1p2n1u1w) 2915 | -5/Garrison | Installed Relay Interface Framework 2944 | -5/Garrison | Expanded RIF knowledge: Coupler Efficiency 2952 | -5/Garrison | Entered Factory 2952 | -4/Factory | Evolved 2 slots: Propulsion x2 3020 | -4/Factory | Build established: Hacker-Sprinter 3285 | -4/Factory | Identified exit to Upper Caves 3285 | -4/Factory | Identified exit to Extension 3338 | -4/Factory | Fabricated Hacking Suite? 3371 | -4/Factory | Spotted B-86 Titan 3515 | -4/Factory | Repaired VTOL Module 3532 | -4/Factory | Entered Upper Caves 3797 | -4/Upper Caves | Crushed by falling debris 3802 | -4/Upper Caves | Attracted the attention of an 0b10 checkpoint 3834 | -4/Upper Caves | Lost 4 parts (3u1w) 3854 | -4/Upper Caves | Learned location of 2 exits from Research 3858 | -4/Upper Caves | Discovered new exit (range 10) 3861 | -4/Upper Caves | Identified exit to Upper Caves 3862 | -4/Upper Caves | Entered another Upper Caves area 3864 | -4/Upper Caves | Identified exit to Research 3922 | -4/Upper Caves | System corruption reached 10% 3954 | -4/Upper Caves | Lost 4 parts (1n3u) 3967 | -4/Upper Caves | Discovered new exit (range 9) 3969 | -4/Upper Caves | Identified exit to Warlord 3969 | -4/Upper Caves | Entered Warlord 3982 | -4/Warlord | System corruption cleaned by Quarantine Array 3985 | -4/Warlord | RIF detected upon attempting to enter Warlord's base 3985 | -4/Warlord | Attacked by Warlord forces 3988 | -4/Warlord | Spotted 46-7JU(B) 3988 | -4/Warlord | Spotted SH-CQW(B) 4004 | -4/Warlord | Core integrity fell below 50% 4018 | -4/Warlord | Destroyed 46-7JU(B) 4026 | -4/Warlord | Destroyed SH-CQW(B) 4079 | -4/Warlord | Core integrity fell below 20% 4102 | -4/Warlord | Destroyed by 50-YTV(g) with Beamcaster Last Messages --------------- Cooling System melted. Slug Cannon melted. Reflective Plating melted. Fission Core melted. Penetrated by Slug. Overheating: Energy bleed (-2). SH-CQW(B) heat damages Cooling System, Hvy. Battle Rifle. SH-CQW(B) heat spikes uncontrollably. Melted Hvy. Armor Plating. SH-CQW(B) critical meltdown. Spk. Medium Treads melted. Fission Core melted. Power failure, Lgt. Angular Momentum Engine shutdown. Firepult broken. Overheating: Short circuit. Integrated Corrupted Phasing Sabre (+1). Knocked back. 4P-BOY(g) Neutrino Core severed. 4P-BOY(g) destroyed. Knocked back. Map ----- +----------------------------------------------------+ | ?????????????????????????????????????????????????? | | ?????????????????????????????????????????????????? | | ?????????????????????????????????????????????????? | | ?????????????????????????????????????????????????? | | ?????????????????????????????????????????????????? | | ?????????????????????????????????????????????????? | | ?????????????????????????????????????????????????? | | ?????????????????????????????????????????????????? | | ?????????????????????????????????????????????????? | | ??????????????????????????????????????????????? | | ??????????????????????????????????????????????+ | | ??????????????????????????????????????????????# | | ??????????????????????????????????????????????# | | ??????????????????????????????????????????????# | | ??????????????????????????????????????????????# | | ??????????????????????????????????????????????# | | ??????????????????????????????????##########?## | | ??????????????????????????????????# #?? | | ??????????????????????????????????# #??# | | ??????????????????????????????????# #??# | | ?????????????????????#+???????????# / [ #??# | | ?????????????????????# ??????????# / [ #??# | | ?????????????????????# ??????????# / [ #??# | | ?????????????????????# ?????????# #### | | ?????????????????????# !########## # | | ?????????????????????# !M@[=% /p # % | | ?????????????????????# =########## ## | | ?????????????????????# g ????????# | | ?????????????????????# ?????????# | | ???????????????????? ?????????# % | | ??????????????????? M ??????????## | | ?????????????????? ??????????# | | ?????????????????#####???????????# % | | ?????????????????????????????????+ # | | ?????????????????????????????????# #### | | ?????????????????????????????????+ #??# | | ?????????????????????????????????###########??# | | ??????????????????????????????????????????????# | | ??????????????????????????????????????????????# | | ??????????????????????????????????????????????# | | ??????????????????????????????????????????????# | | ?????????????????????????????????????????????? | | ?????????????????????????????????????????????? | | ?????????????????????????????????????????????? | | ??????????????????????????????????????????????"" | | ???????????????????????????????????????????????? | | ?????????????????????????????????????????????????? | | ?????????????????????????????????????????????????? | | ?????????????????????????????????????????????????? | | ?????????????????????????????????????????????????? | +----------------------------------------------------+ Best States ------------- Heat Dissipation 43 Energy Generation 18 Energy Capacity 160 Matter Stores 300 Matter Capacity 300 Sight Range 16 Terrain Scan Range 16 Terrain Scan Density 85 Resistance: KI 20 Resistance: TH 20 Resistance: EX 20 Resistance: EM 20 Resistance: I 20 Resistance: S 20 Resistance: P 20 Evasion (%) 64 Offensive Hacking 80 Item Schematics ----------------- Hacking Suite | -8/Materials | Hacked Spear | -6/Factory | Hacked Robot Schematics ------------------ None Fabricated ------------ Spear | x2 | -6/Factory Hacking Suite | x1 | -4/Factory Repaired ---------- VTOL Module | 20% | -4/Factory Alien Tech Used ----------------- None Achievements -------------- None Challenges ------------ None Game ------ Seed ArcBeamSteel Manual? 0 Play Time 00:45:10 Cumulative 170.2 hours Start 2025.05.19 @ 16:23:30 End 2025.05.19 @ 17:07:28 Sessions 1 Manual Loads 0 Difficulty Adventurer Special Mode None Game No. 172 Rogue 18 Adventurer 143 Explorer 11 Win Type - Total 40 Types 10/0/13/1/6/0/4/1/0/5 Lore% 47 Gallery% 45 Achievement% 67 Wizard Run 0 Options --------- Layout 0 ASCII 0 Keyboard 0 Movement Numpad Keybinds 0 Fullscreen 2 Font 12/Smallcaps Map View 83x54 Zoom Use 0% Tactical HUD 0 Map Filters NONE Filters NONE Steam X RUN: 2cb37f26-a531-4e65-b4d9-639f32c209e4